Cogmind - Beta 9.6 @@@ ROGUE MODE // 2020.05.23 @ 18:04:46 Player: Vectis Result: Destroyed by G-47 Trooper with Particle Gun Performance ------------- Evolutions (0) 0 Regions Visited (2) 400 Robots Destroyed (21) 105 Value Destroyed (493) 493 Prototype IDs (0) 0 Alien Tech Used (0) 0 Bonus (0) 0 TOTAL SCORE: 998 Bonus ------- None Cogmind --------- Core Integrity 0/250 Matter 251/300 Energy 250/250 System Corruption 8% Temperature Cool (9) Movement Walking (150) Ox1 Location -10/Mines Parts ------- > --- POWER (1) -------- Ion Engine > --- PROPULSION (2) --- Carbon-fiber Leg Carbon-fiber Leg > --- UTILITY (2) ------ Large Storage Unit Large Storage Unit > --- WEAPON (2) ------- Hammer Hammer > --- INVENTORY (16) --- Ion Engine Light Treads Aluminum Leg Aluminum Leg Aluminum Leg Wheel Compact Wheel Compact Wheel Small Storage Unit Large Matter Pod (150) Structural Scanner Actuator Array Light Assault Rifle Grenade Launcher Datajack Improved Datajack Peak State ------------ > --- POWER ------------ Ion Engine > --- PROPULSION ------- Carbon-fiber Leg Carbon-fiber Leg > --- UTILITY ---------- Large Storage Unit Large Storage Unit > --- WEAPON ----------- Hammer Hammer > --- INVENTORY -------- Ion Engine Light Treads Aluminum Leg Aluminum Leg Aluminum Leg Wheel Compact Wheel Compact Wheel Small Storage Unit Large Matter Pod Structural Scanner Actuator Array Light Assault Rifle Grenade Launcher Datajack Improved Datajack [Rating: 13] Favorites ----------- Power Ion Engine Engine Ion Engine Propulsion Light Treads Treads Light Treads Leg Aluminum Leg Utility Large Storage Unit Device Sensor Array Storage Large Storage Unit Weapon Hammer Ballistic Gun Light Assault Rifle Impact Weapon Hammer Build | -11 -10 -10 ------- Run | Scr Mat Min Slots Evolved . | . . . Power . | . . . Propulsion . | . . . Utility . | . . . Weapon . | . . . Parts Attached 23 | 6 11 6 Power 2 | 1 . 1 Engine 2 | 1 . 1 Core . | . . . Reactor . | . . . Propulsion 7 | 2 2 3 Treads 3 | . 2 1 Leg 4 | 2 . 2 Wheel . | . . . Hover . | . . . Flight . | . . . Utility 5 | 1 4 . Device 1 | . 1 . Storage 4 | 1 3 . Processor . | . . . Hackware . | . . . Protection . | . . . Artifact . | . . . Weapon 9 | 2 5 2 Energy Gun . | . . . Energy Cannon . | . . . Ballistic Gun 5 | 2 3 . Ballistic Cannon . | . . . Launcher . | . . . Special Weapon . | . . . Impact Weapon 4 | . 2 2 Slashing Weapon . | . . . Piercing Weapon . | . . . Special Melee Weapon . | . . . Unidentified Prototypes . | . . . Parts Lost 3 | . . 3 Power 1 | . . 1 Propulsion 1 | . . 1 Utility . | . . . Weapon 1 | . . 1 Highest Loss Streak 2 | . . 2 Average Slot Usage (%) 99 | . 99 97 Engine 13 | . 14 12 Treads 22 | . 23 16 Leg 5 | . 4 10 Device 5 | . 6 . Storage 22 | . 21 28 Ballistic Gun 10 | . 12 . Impact Weapon 17 | . 15 28 Naked Turns . | . . . Heaviest Build 41 | 12 41 41 Greatest Support 40 | 20 40 40 Greatest Overweight (x) 2 | . 1 2 Average Overweight (x) . | . . . Largest Inventory Capacity 16 | 6 16 16 Average Capacity 11 | 5 10 16 Most Carried 16 | 4 16 16 Average Carried 8 | 2 8 15 Final Capacity 16 | 6 16 16 Final Carried 16 | 4 16 16 Class Distribution -------------------- 100% | Mutant Dominant Class ---------------- Mutant | -10/Materials Mutant | -10/Mines Resources | -11 -10 -10 ----------- Run | Scr Mat Min Matter Collected 702 | 320 360 22 Remotely . | . . . Salvage Created 845 | 133 587 125 Parts 45 | 9 32 4 Haulers Intercepted 1 | . 1 . Recyclers Shooed 1 | . 1 . Parts Field Recycled . | . . . Retrieved Matter . | . . . Parts Self-Destructed . | . . . Prevented . | . . . Kills | -11 -10 -10 ------- Run | Scr Mat Min Combat Hostiles Destroyed 14 | . 11 3 Melee 3 | . 1 2 Guns 9 | . 9 . Classes Destroyed 6 | 2 4 . Tunneler 2 | 2 . . Hauler 1 | . 1 . Recycler 3 | 1 2 . Watcher 1 | . 1 . Swarmer 3 | . 3 . Grunt 11 | . 8 3 Best Kill Streak 3 | 2 3 1 Combat Bots Only 3 | . 3 1 Max Kills in Single Turn 1 | 1 1 1 Gunslinging . | . . . Exploded . | . . . Melee 1 | . 1 1 Uniques/NPCs Destroyed . | . . . Combat | -11 -10 -10 -------- Run | Scr Mat Min Damage Taken 988 | . 527 461 Core 251 | . 107 144 Absorbed by Shields . | . . . Core Remaining (%) 100 | 100 . . Volleys Fired 49 | 15 34 . Largest 2 | 2 2 . Hottest 40 | 40 40 . Shots Fired 98 | 30 68 . Gun 98 | 30 68 . Cannon . | . . . Launcher . | . . . Special . | . . . Kinetic 98 | 30 68 . Thermal . | . . . Explosive . | . . . Electromagnetic . | . . . Robot Hit Streak 11 | 4 11 . Robot Miss Streak 3 | 2 3 . Penetration Max . | . . . Secondary Targets 3 | . 3 . Max Gunslinging Chain 1 | . 1 . Shots Hit Robots 88 | 16 58 14 Core Hits 31 | 4 24 3 Critical Hits 2 | 1 1 . Critical Kills 1 | . 1 . Critical Parts Destroyed 1 | 1 . . Melee Attacks 36 | . 15 21 Impact 36 | . 15 21 Slashing . | . . . Piercing . | . . . Sneak Attacks 5 | . 4 1 Combat Hostiles 1 | . . 1 Follow-up Attacks 4 | . 1 3 Damage Inflicted 1246 | 159 765 322 Guns 581 | 159 422 . Cannons . | . . . Explosions . | . . . Melee 665 | . 343 322 Ramming . | . . . Kinetic 581 | 159 422 . Thermal . | . . . Explosive . | . . . Electromagnetic . | . . . Impact 665 | . 343 322 Slashing . | . . . Piercing . | . . . Highest Corruption 8 | . 1 8 Average Corruption 1 | . 1 5 Corruption Purged . | . . . Effects 14 | . 8 6 Message Errors 3 | . 1 2 Matter Fused 2 | . . 2 Energy Discharges 3 | . 3 . Parts Rejected 1 | . . 1 Data Loss (minor) 1 | . 1 . Targeting Errors 4 | . 3 1 Overload Shots . | . . . Overflow Damage 56 | . 21 35 Projectiles . | . . . Explosions . | . . . Melee 56 | . 21 35 Knockbacks 2 | . 2 . Impact 2 | . 2 . Kinetic . | . . . Secondary . | . . . Self-Inflicted Damage . | . . . Shots . | . . . Rammed . | . . . Targets Rammed . | . . . Kicked . | . . . Crushed . | . . . Highest Temperature 18 | . 18 . Average Temperature 9 | . 9 . Received Heat Transfer 399 | . 195 204 Siege Activations . | . . . Robots Corrupted . | . . . Combat Hostiles . | . . . Parts Fried 6 | . 4 2 Impact Corruptions 4 | . 2 2 Robots Melted . | . . . Combat Hostiles . | . . . Parts Melted . | . . . Heat Transferred . | . . . Parts Sabotaged . | . . . Parts Stolen . | . . . Parts Stripped . | . . . Power Chain Reactions . | . . . Missiles Intercepted . | . . . Alert | -11 -10 -10 ------- Run | Scr Mat Min Peak Influence 176 | 15 176 54 Average Influence 70 | 5 85 36 Maximum Alert Level . | . . . Low Security (%) 100 | 100 100 100 Level 1 . | . . . Level 2 . | . . . Level 3 . | . . . Level 4 . | . . . Level 5 . | . . . High Security . | . . . Max Security . | . . . Squads Dispatched 2 | . 1 1 Investigation 2 | . 1 1 Extermination . | . . . Reinforcement . | . . . Assault . | . . . Garrison . | . . . Intercept . | . . . Construction Impeded . | . . . Haulers Reinforced . | . . . Stealth | -11 -10 -10 --------- Run | Scr Mat Min Distress Signals 1 | . 1 . Communications Jammed . | . . . Distress Signals . | . . . Times Spotted 34 | . 23 11 Peak Tracking Total 10 | . 3 10 Tactical Retreats 2 | . 1 1 Traps | -11 -10 -10 ------- Run | Scr Mat Min Traps Triggered 3 | . 3 . Indirectly . | . . . Trap Hack Attempts . | . . . Triggered . | . . . Disarmed . | . . . Reprogrammed . | . . . Reused . | . . . Traps Extracted . | . . . Installed . | . . . Triggered . | . . . Machines | -11 -10 -10 ---------- Run | Scr Mat Min Machines Disabled . | . . . Max in Single Turn . | . . . Machines Sabotaged . | . . . Garrisons Compromised . | . . . Overloaded Fab Kills . | . . . Fab Network Shutdowns . | . . . Hacking | -11 -10 -10 --------- Run | Scr Mat Min Machines Accessed 8 | . 7 1 Terminals 6 | . 6 . Fabricators . | . . . Repair Stations . | . . . Recycling Units 1 | . 1 . Scanalyzers . | . . . Garrison Access . | . . . Total Hacks 13 | . 12 1 Successful 6 | . 5 1 Failed 7 | . 7 . Catastrophic 3 | . 3 . Database Lockouts . | . . . Manual 7 | . 7 . Terminals 11 | . 11 . Fabricators . | . . . Repair Stations . | . . . Recycling Units 1 | . 1 . Scanalyzers . | . . . Garrison Access . | . . . Terminal Hacks 3 | . 2 1 Open Door 1 | . . 1 Emergency Access Points 1 | . 1 . Unreport Threat 1 | . 1 . Fabricator Hacks . | . . . Repair Station Hacks . | . . . Recycling Unit Hacks . | . . . Scanalyzer . | . . . Garrison Access Hacks . | . . . Unauthorized Hacks 3 | . 3 . Terminals 2 | . 2 . Track 1 | . 1 . Operators 1 | . 1 . Fabricators . | . . . Repair Stations . | . . . Recycling Units 1 | . 1 . Tunnel 1 | . 1 . Scanalyzers . | . . . Garrison Access . | . . . Data Cores Recovered . | . . . Used . | . . . Hacking Detections 6 | . 6 . Full Trace Events 1 | . 1 . Feedback Events . | . . . Feedback Blocked . | . . . Robot Schematics Acquired . | . . . Robots Built . | . . . Matter . | . . . Time . | . . . Total Robot Build Rating . | . . . Part Schematics Acquired . | . . . Parts Built . | . . . Matter . | . . . Time . | . . . Total Part Build Rating . | . . . Parts Repaired . | . . . Time . | . . . Parts Recycled . | . . . Recycled Matter . | . . . Retrieved Matter . | . . . Retrieved Components . | . . . Parts Scanalyzed . | . . . Part Schematics Acquired . | . . . Parts Damaged . | . . . Bothacking | -11 -10 -10 ------------ Run | Scr Mat Min Used RIF Installer . | . . . Robots Hacked . | . . . Non-combat . | . . . Combat . | . . . Robot Hacks Applied . | . . . Relay Couplers Released . | . . . Robots Rewired . | . . . Allies Hacked . | . . . Hacks Repelled . | . . . Allies | -11 -10 -10 -------- Run | Scr Mat Min Total Allies . | . . . Largest Group . | . . . Highest-Rated Group . | . . . Highest-Rated Ally . | . . . Total Orders . | . . . Ally Attacks . | . . . Total Damage . | . . . Kills . | . . . Allies Corrupted . | . . . Allies Melted . | . . . Intel | -11 -10 -10 ------- Run | Scr Mat Min Robot Analysis Total . | . . . Derelict Logs Recovered . | . . . Drone Launches . | . . . Drone Recoveries . | . . . Exploration | -11 -10 -10 ------------- Run | Scr Mat Min Turns Passed 1645 | 164 1259 222 Spaces Moved 856 | 90 667 99 Core 5 | 5 . . Treads 589 | . 536 53 Legs 262 | 85 131 46 Wheels . | . . . Hover . | . . . Flight . | . . . Fastest Speed 50 | 50 120 150 Average Speed 157 | 116 161 166 Slowest Speed 200 | 120 180 200 Overloaded Moves . | . . . Propulsion Burnouts . | . . . Robots Hopped . | . . . Cave-ins Triggered . | . . . Exploration Rate (%) 40 | 4 93 23 Regions Visited 2 Branch Regions 1 Pre-discovered Areas 1 | . 1 . Known Exits Taken . | . . . Unknown Exits Taken 2 | 1 1 . Scrap Searched . | . . . Spaces Dug . | . . . Terrain Destroyed . | . . . Melee . | . . . Projectile . | . . . AOE . | . . . Actions | -11 -10 -10 --------- Run | Scr Mat Min Total 1024 | 119 774 131 Wait 29 | 5 23 1 Move 854 | 89 666 99 Hop . | . . . Pick Up 24 | 4 16 4 Fast Attach 13 | 6 4 3 Attach 3 | . . 3 Detach . | . . . Swap 7 | . 7 . Drop 14 | . 11 3 Fire 49 | 15 34 . Melee 31 | . 13 18 Ram . | . . . Kick . | . . . Crush . | . . . Escape Stasis . | . . . Rewire . | . . . Trap . | . . . Miscellaneous . | . . . Route ------- -11/Scrapyard -10/Materials (discovered 5 exits: [*Mat x3] / *Min x2) -10/Mines History --------- Turn | Location | Event 2 | -11/Scrapyard | Discovered new exit (range 16) 165 | -11/Scrapyard | Entered Materials 298 | -10/Materials | Discovered new exit (range 15) 308 | -10/Materials | Build established: Mutant 370 | -10/Materials | Discovered new exit (range 12) 924 | -10/Materials | Discovered new exit (range 16) 1068 | -10/Materials | Discovered new exit (range 6) 1302 | -10/Materials | Discovered new exit (range 12) 1424 | -10/Materials | Entered Mines 1432 | -10/Mines | Core integrity fell below 50% 1458 | -10/Mines | Core integrity fell below 20% 1484 | -10/Mines | Assembled infested the area 1548 | -10/Mines | Met a Derelict shopkeep closing up shop 1646 | -10/Mines | Destroyed by G-47 Trooper with Particle Gun Last Messages --------------- >>Open Door Sealed Doors opened. 01548_ 2O-7F7(g): "Sorry, the Unaware have moved into these parts and I'm closing up shop. No more sales from me!" 01550_ ALERT: Derelict activity detected in mines. Dispatching investigation squad. 01552_ 2O-7F7(g): "Take whatever you can and run for it!" 01555_ Acquired Imp. Datajack. 01557_ System corrupted: Matter fused (-10). 01557_ Dropped Lgt. Treads. 01558_ Acquired Carbon-fiber Leg. 01573_ Acquired Actuator Array. 01586_ 0WLK1=W 01629_ Acquired 12 matter. 01633_ System corrupted: Hammer targeting data glitched. 01633_ Hammer follow-up attack on G-34 Mercenary. 01634_ System corrupted: Hammer rejected. 01636_ Acquired Hammer. 01645_ Hammer follow-up attack on G-34 Mercenary. 01645_ G-34 Mercenary destroyed. Map ----- +----------------------------------------------------+ | ?????????# ??????????????????????? | | ?????????# #?????????????????????? | | ?????????# #?????????????????????? | | ?????????# #?????????????????????? | | ?????????# #?????????????????????? | | ????????## #?????????????????????? | | ????????# #?????????????????????? | | ????????# ##????????????????????? | | ??#?????# ##???????????????????? | | ??# ?????# ##??????????????????? | | ??# ????# ##?????????????????? | | ### ##### #?????????????????? | | ###### #??????????? | | % = % #??????????? | | # ## ####### #??????????? | | ## ### #??????????##??????? | | #?# #?# #?????????? #??????? | | ####??# #?## ##?????????? #??????? | | ??##### #??####??????????? #??????? | | ??# #???????????###### ####???? | | ??# #####???????????# #???? | | ??# #?????########### """ """ #???? | | ??# #?????# """ """ #???? | | ??# #?????# """ """ #???? | | ### #?????# ######### *%= #???? | | # #?????# #???????# """@""" #???? | | # ######### #???????# """ """ #???? | | # #?# #???????# """g""" #???? | | ### #######???????# #???? | | #?????????????# """ """ #???? | | #?????????????# """ """ #???? | | #####?????????????# """ """ #???? | | ##?????????????????# ??????? | | ##??????????????????# """ ""??????? | | #???????????????????? "?" "???????? | | ????????????????????? "?" "???????? | | ????????????????????? ??? ????????? | | ????????????????????? ??? ????????? | | ?????????????????????#???#????????? | | ??????????????????????????????????? | | ??????????????????????????????????? | | ??????????????????????????????????? | | ??????????????????????????????????? | | ??????????????????????????????????? | | ??????????????????????????????????? | | ??????????????????????????????????? | | ??????????????????????????????????? | | ??????????????????????????????????? | | ??????????????????????????????????? | | ??????????????????????????????????? | +----------------------------------------------------+ Best States ------------- Heat Dissipation 25 Energy Generation 10 Energy Capacity 250 Matter Stores 300 Matter Capacity 300 Sight Range 16 Robot Scan Range 10 Terrain Scan Density 10 Evasion (%) 40 Recoil Reduction 2 Item Schematics ----------------- None Robot Schematics ------------------ None Fabricated ------------ Nothing Alien Tech Used ----------------- None Achievements -------------- None Challenges ------------ None Game ------ Seed HelicalLongswordBlade Manual? 0 Play Time 00:10:34 Cumulative 51.5 hours Start 2020.05.23 @ 17:55:32 End 2020.05.23 @ 18:04:46 Sessions 1 Manual Loads 0 Difficulty Rogue Special Mode None Game No. 30 Rogue 30 Adventurer 0 Explorer 0 Win Type - Total 3 Types 2/0/0/1/0/0/0 Lore% 54 Gallery% 53 Achievement% 46 Wizard Run 0 Options --------- ASCII 1 Keyboard 0 Movement Numpad Keybinds 0 Fullscreen 1 Font 18/SmallcapsGlow Map View 76x50 Tactical HUD 1 Map Filters NONE Filters NONE Steam 1 RUN: e89631b0-0be5-4795-9489-00127332d7c7